[Event "13 Open de Quenza"]
[Site "Quenza, France"]
[Date "2024.07.07"]
[Round "3.6"]
[White "Bellet, Georges"]
[Black "Dourerassou, Jonathan"]
[Result "0-1"]
[TimeControl "5min+3s/move"]
[WhiteElo "2116"]
[BlackElo "2422"]

1. e4 {[%clk 00:05:03]} {[%emt 00:12:01]} c5 {[%clk 00:05:03]} {[%emt
00:00:01]} 2. Nf3 {[%clk 00:05:03]} e6 {[%clk 00:05:03]} 3. d4 {[%clk
00:05:03]} {[%emt 00:00:03]} cxd4 {[%clk 00:05:03]} {[%emt 00:00:01]} 4. Nxd4
{[%clk 00:05:03]} Nf6 {[%clk 00:05:03]} 5. Nc3 {[%clk 00:05:03]} {[%emt
00:00:01]} Nc6 {[%clk 00:05:03]} 6. Be3 {[%clk 00:05:02]} {[%emt 00:00:04]} Bb4
{[%clk 00:05:03]} {[%emt 00:00:02]} 7. Nxc6 {[%clk 00:04:46]} {[%emt 00:00:18]}
bxc6 {[%clk 00:05:03]} {[%emt 00:00:02]} 8. Bd3 {[%clk 00:04:43]} {[%emt
00:00:06]} d5 {[%clk 00:05:03]} {[%emt 00:00:01]} 9. exd5 {[%clk 00:04:43]}
{[%emt 00:00:02]} exd5 {[%clk 00:05:00]} {[%emt 00:00:07]} 10. Bd2 {[%clk
00:04:28]} {[%emt 00:00:17]} Bg4 {[%clk 00:04:53]} {[%emt 00:00:10]} 11. Ne2
{[%clk 00:03:51]} {[%emt 00:00:39]} Bd6 {[%clk 00:04:47]} {[%emt 00:00:09]} 12.
h3 {[%clk 00:03:46]} {[%emt 00:00:09]} Bh5 {[%clk 00:04:44]} {[%emt 00:00:06]}
13. Bg5 {[%clk 00:03:29]} {[%emt 00:00:20]} O-O {[%clk 00:04:38]} {[%emt
00:00:09]} 14. Qd2 {[%clk 00:03:02]} {[%emt 00:00:30]} Re8 {[%clk 00:04:34]}
{[%emt 00:00:07]} 15. g4 {[%clk 00:02:42]} {[%emt 00:00:23]} Bg6 {[%clk
00:04:34]} {[%emt 00:00:01]} 16. Bxg6 {[%clk 00:02:41]} {[%emt 00:00:04]} hxg6
{[%clk 00:04:34]} {[%emt 00:00:01]} 17. O-O-O {[%clk 00:02:33]} {[%emt
00:00:11]} Qb6 {[%clk 00:04:16]} {[%emt 00:00:21]} 18. Bxf6 {[%clk 00:02:14]}
{[%emt 00:00:22]} gxf6 {[%clk 00:04:16]} {[%emt 00:00:01]} 19. Nf4 {[%clk
00:01:46]} {[%emt 00:00:31]} Rab8 {[%clk 00:03:48]} {[%emt 00:00:32]} 20. b3
{[%clk 00:01:29]} {[%emt 00:00:20]} Re4 {[%clk 00:03:07]} {[%emt 00:00:44]} 21.
Nd3 {[%clk 00:01:25]} {[%emt 00:00:07]} c5 {[%clk 00:03:07]} {[%emt 00:00:01]}
22. f3 {[%clk 00:01:00]} {[%emt 00:00:28]} Rd4 {[%clk 00:02:58]} {[%emt
00:00:11]} 23. c3 {[%clk 00:00:59]} {[%emt 00:00:05]} Bf4 {[%clk 00:02:58]} 24.
Nxf4 {[%clk 00:00:54]} {[%emt 00:00:08]} Rxd2 {[%clk 00:02:58]} {[%emt
00:00:02]} 25. Rxd2 {[%clk 00:00:54]} d4 {[%clk 00:02:55]} {[%emt 00:00:05]} 26.
Nd5 {[%clk 00:00:41]} {[%emt 00:00:16]} Qd6 {[%clk 00:02:48]} {[%emt 00:00:09]}
27. c4 {[%clk 00:00:41]} {[%emt 00:00:02]} Re8 {[%clk 00:02:48]} {[%emt
00:00:01]} 28. Kc2 {[%clk 00:00:39]} {[%emt 00:00:06]} Kg7 {[%clk 00:02:48]}
{[%emt 00:00:02]} 29. f4 {[%clk 00:00:39]} {[%emt 00:00:02]} Qe6 {[%clk
00:02:48]} {[%emt 00:00:03]} 30. Rf1 {[%clk 00:00:38]} {[%emt 00:00:04]} Qe4+
{[%clk 00:02:48]} {[%emt 00:00:02]} 31. Kc1 {[%clk 00:00:38]} {[%emt 00:00:03]}
Rh8 {[%clk 00:02:48]} {[%emt 00:00:01]} 32. g5 {[%clk 00:00:36]} {[%emt
00:00:05]} f5 {[%clk 00:02:45]} {[%emt 00:00:07]} 33. Nf6 {[%clk 00:00:36]}
{[%emt 00:00:03]} Qe3 {[%clk 00:02:45]} {[%emt 00:00:01]} 34. Nd5 {[%clk
00:00:36]} {[%emt 00:00:02]} Qxh3 {[%clk 00:02:44]} {[%emt 00:00:04]} 35. Re1
{[%clk 00:00:36]} {[%emt 00:00:01]} Qg3 {[%clk 00:02:44]} {[%emt 00:00:02]} 36.
Re7 {[%clk 00:00:35]} {[%emt 00:00:03]} Rh1+ {[%clk 00:02:43]} {[%emt
00:00:03]} 37. Kc2 {[%clk 00:00:35]} {[%emt 00:00:03]} Qg1 {[%clk 00:02:43]}
{[%emt 00:00:02]} 38. b4 {[%clk 00:00:30]} {[%emt 00:00:09]} Qb1# {[%emt
00:00:02]} 0-1

[Event "13 Open de Quenza"]
[Site "Quenza, France"]
[Date "2024.07.07"]
[Round "3.7"]
[White "Maze, Sebastien"]
[Black "Daulet, Alikhan"]
[Result "1-0"]
[TimeControl "5min+3s/move"]
[WhiteElo "2553"]
[BlackElo "1922"]

1. e4 {[%clk 00:05:03]} {[%emt 00:12:25]} c5 {[%clk 00:05:03]} {[%emt
00:00:01]} 2. Nf3 {[%clk 00:05:03]} {[%emt 00:00:02]} Nc6 {[%clk 00:05:03]} 3.
Bb5 {[%clk 00:05:03]} {[%emt 00:00:01]} e6 {[%clk 00:05:03]} 4. Bxc6 {[%clk
00:05:03]} {[%emt 00:00:02]} bxc6 {[%clk 00:05:03]} 5. d3 {[%clk 00:05:03]}
{[%emt 00:00:01]} Qc7 {[%clk 00:05:03]} 6. Nbd2 {[%clk 00:05:03]} {[%emt
00:00:02]} Ne7 {[%clk 00:05:03]} {[%emt 00:00:03]} 7. h4 {[%clk 00:05:03]}
{[%emt 00:00:04]} e5 {[%clk 00:05:03]} {[%emt 00:00:07]} 8. h5 {[%clk
00:05:03]} {[%emt 00:00:02]} h6 {[%clk 00:05:03]} {[%emt 00:00:01]} 9. Nh4
{[%clk 00:05:03]} {[%emt 00:00:12]} d6 {[%clk 00:05:03]} {[%emt 00:00:03]} 10.
O-O {[%clk 00:05:03]} {[%emt 00:00:17]} Ng8 {[%clk 00:05:03]} {[%emt 00:00:13]}
11. f4 {[%clk 00:05:03]} {[%emt 00:00:09]} exf4 {[%clk 00:05:03]} {[%emt
00:00:12]} 12. Nc4 {[%clk 00:05:03]} {[%emt 00:00:02]} Nf6 {[%clk 00:04:55]}
{[%emt 00:00:16]} 13. Bxf4 {[%clk 00:04:51]} {[%emt 00:00:15]} Bg4 {[%clk
00:04:49]} {[%emt 00:00:09]} 14. Qe1 {[%clk 00:04:41]} {[%emt 00:00:12]} Nxh5
{[%clk 00:04:49]} {[%emt 00:00:03]} 15. Bh2 {[%clk 00:04:00]} {[%emt 00:00:44]}
Qd7 {[%clk 00:04:00]} {[%emt 00:00:53]} 16. Nf5 {[%clk 00:03:48]} {[%emt
00:00:15]} Bxf5 {[%clk 00:03:51]} {[%emt 00:00:11]} 17. exf5+ {[%clk 00:02:14]}
{[%emt 00:01:37]} Kd8 {[%clk 00:03:50]} {[%emt 00:00:04]} 18. Qa5+ {[%clk
00:02:12]} {[%emt 00:00:05]} Qc7 {[%clk 00:03:29]} {[%emt 00:00:24]} 19. Qa6
{[%clk 00:02:07]} {[%emt 00:00:08]} Nf6 {[%clk 00:03:26]} {[%emt 00:00:06]} 20.
a3 {[%clk 00:02:03]} {[%emt 00:00:07]} Be7 {[%clk 00:02:58]} {[%emt 00:00:31]}
21. b4 {[%clk 00:01:41]} {[%emt 00:00:25]} cxb4 {[%clk 00:02:58]} {[%emt
00:00:02]} 22. axb4 {[%clk 00:01:41]} {[%emt 00:00:01]} Kd7 {[%clk 00:02:58]}
{[%emt 00:00:03]} 23. Rfe1 {[%clk 00:01:30]} {[%emt 00:00:14]} Qc8 {[%clk
00:02:22]} {[%emt 00:00:39]} 24. Qa4 {[%clk 00:00:55]} {[%emt 00:00:38]} Re8
{[%clk 00:02:01]} {[%emt 00:00:24]} 25. Qb3 {[%clk 00:00:35]} {[%emt 00:00:23]}
Ng4 {[%clk 00:00:58]} {[%emt 00:01:06]} 26. Bg3 {[%clk 00:00:35]} {[%emt
00:00:03]} d5 {[%clk 00:00:56]} {[%emt 00:00:06]} 27. Na5 {[%clk 00:00:27]}
{[%emt 00:00:11]} Bf6 {[%clk 00:00:48]} {[%emt 00:00:11]} 28. c3 {[%clk
00:00:27]} {[%emt 00:00:01]} Qa6 {[%clk 00:00:42]} {[%emt 00:00:09]} 29. Qc2
{[%clk 00:00:17]} {[%emt 00:00:13]} Ne3 {[%clk 00:00:30]} {[%emt 00:00:15]} 30.
Qd2 {[%clk 00:00:14]} {[%emt 00:00:06]} Nxf5 {[%clk 00:00:30]} {[%emt
00:00:01]} 31. Nb3 {[%clk 00:00:14]} {[%emt 00:00:02]} Qxa1 {[%emt 00:00:21]}
32. Rxa1 {[%clk 00:00:11]} {[%emt 00:00:05]} Nxg3 {[%clk 00:00:12]} 33. Nc5+
{[%clk 00:00:11]} Kd6 {[%clk 00:00:07]} {[%emt 00:00:08]} 34. Qf2 {[%clk
00:00:11]} {[%emt 00:00:01]} Bxc3 {[%clk 00:00:04]} {[%emt 00:00:06]} 35. Qxg3+
{[%clk 00:00:11]} {[%emt 00:00:02]} Be5 {[%clk 00:00:04]} 36. Qh3 {[%clk
00:00:08]} {[%emt 00:00:05]} 1-0

[Event "13 Open de Quenza"]
[Site "Quenza, France"]
[Date "2024.07.07"]
[Round "3.8"]
[White "De Seroux, Camille"]
[Black "Maurizzi, Marc Andria"]
[Result "0-1"]
[TimeControl "5min+3s/move"]
[WhiteElo "2113"]
[BlackElo "2620"]

1. Nc3 {[%clk 00:05:03]} {[%emt 00:00:02]} Nc6 {[%clk 00:05:03]} {[%emt
00:00:01]} 2. e4 {[%clk 00:05:03]} {[%emt 00:00:02]} e5 {[%clk 00:05:03]}
{[%emt 00:00:01]} 3. Nf3 {[%clk 00:05:03]} {[%emt 00:00:01]} Nf6 {[%clk
00:05:03]} {[%emt 00:00:03]} 4. Bb5 {[%clk 00:05:03]} {[%emt 00:00:01]} Bd6
{[%clk 00:05:01]} {[%emt 00:00:05]} 5. O-O {[%clk 00:05:02]} {[%emt 00:00:05]}
O-O {[%clk 00:05:01]} {[%emt 00:00:03]} 6. Bxc6 {[%clk 00:04:55]} {[%emt
00:00:10]} dxc6 {[%clk 00:05:01]} {[%emt 00:00:02]} 7. h3 {[%clk 00:04:55]}
{[%emt 00:00:01]} c5 {[%clk 00:05:01]} {[%emt 00:00:02]} 8. d3 {[%clk
00:04:55]} {[%emt 00:00:01]} h6 {[%clk 00:05:01]} {[%emt 00:00:03]} 9. Ne2
{[%clk 00:04:50]} {[%emt 00:00:07]} Be6 {[%clk 00:05:01]} {[%emt 00:00:02]} 10.
Ng3 {[%clk 00:04:46]} {[%emt 00:00:08]} c4 {[%clk 00:05:01]} {[%emt 00:00:01]}
11. d4 {[%clk 00:04:39]} {[%emt 00:00:10]} Bb4 {[%clk 00:04:49]} {[%emt
00:00:15]} 12. c3 {[%clk 00:04:24]} {[%emt 00:00:17]} Be7 {[%clk 00:04:45]}
{[%emt 00:00:07]} 13. Nxe5 {[%clk 00:04:24]} {[%emt 00:00:03]} c6 {[%clk
00:04:44]} {[%emt 00:00:03]} 14. f4 {[%clk 00:04:22]} {[%emt 00:00:06]} Bd6
{[%clk 00:04:38]} {[%emt 00:00:09]} 15. f5 {[%clk 00:04:15]} {[%emt 00:00:09]}
Bc8 {[%clk 00:04:38]} {[%emt 00:00:02]} 16. Bf4 {[%clk 00:03:52]} {[%emt
00:00:26]} Re8 {[%clk 00:04:22]} {[%emt 00:00:19]} 17. Nxc4 {[%clk 00:03:44]}
{[%emt 00:00:11]} Bf8 {[%clk 00:04:21]} {[%emt 00:00:04]} 18. e5 {[%clk
00:03:35]} {[%emt 00:00:13]} Nd5 {[%clk 00:04:21]} {[%emt 00:00:02]} 19. Bd2
{[%clk 00:03:25]} {[%emt 00:00:13]} c5 {[%clk 00:04:11]} {[%emt 00:00:13]} 20.
Ne3 {[%clk 00:03:13]} {[%emt 00:00:15]} cxd4 {[%clk 00:04:10]} {[%emt
00:00:05]} 21. cxd4 {[%clk 00:03:13]} {[%emt 00:00:01]} b6 {[%clk 00:03:37]}
{[%emt 00:00:36]} 22. Nxd5 {[%clk 00:02:37]} {[%emt 00:00:39]} Qxd5 {[%clk
00:03:37]} 23. Bc3 {[%clk 00:02:34]} {[%emt 00:00:06]} Bb7 {[%clk 00:03:37]}
{[%emt 00:00:03]} 24. Rf2 {[%clk 00:02:30]} {[%emt 00:00:06]} b5 {[%clk
00:03:36]} {[%emt 00:00:04]} 25. a3 {[%emt 00:00:04]} a5 26. Nh5 {[%clk
00:01:51]} {[%emt 00:00:40]} b4 {[%clk 00:03:32]} {[%emt 00:00:07]} 27. Be1
{[%clk 00:01:40]} {[%emt 00:00:15]} Rad8 {[%clk 00:03:10]} {[%emt 00:00:24]} 28.
Qg4 {[%clk 00:01:33]} {[%emt 00:00:09]} Kh7 {[%clk 00:03:10]} {[%emt 00:00:01]}
29. Rd1 {[%clk 00:01:25]} {[%emt 00:00:11]} Rxe5 {[%clk 00:03:02]} {[%emt
00:00:11]} 30. Nf4 {[%clk 00:01:22]} {[%emt 00:00:06]} Qd7 {[%clk 00:03:02]}
{[%emt 00:00:03]} 31. Nd3 {[%clk 00:01:09]} {[%emt 00:00:15]} Qxd4 {[%clk
00:02:51]} {[%emt 00:00:14]} 32. Qxd4 {[%clk 00:00:39]} {[%emt 00:00:34]} Rxd4
{[%clk 00:02:51]} 33. Nxe5 {[%clk 00:00:31]} {[%emt 00:00:11]} Rxd1 {[%clk
00:02:51]} 34. Rf1 {[%clk 00:00:31]} {[%emt 00:00:03]} Bc5+ {[%clk 00:02:51]}
{[%emt 00:00:03]} 35. Kh2 {[%clk 00:00:22]} {[%emt 00:00:12]} bxa3 {[%clk
00:02:49]} {[%emt 00:00:05]} 36. bxa3 {[%clk 00:00:22]} {[%emt 00:00:02]} Ba6
{[%clk 00:02:47]} {[%emt 00:00:04]} 37. Rh1 {[%clk 00:00:22]} {[%emt 00:00:01]}
a4 {[%clk 00:02:47]} {[%emt 00:00:03]} 38. Nxf7 {[%clk 00:00:16]} {[%emt
00:00:09]} Bxa3 {[%clk 00:02:47]} {[%emt 00:00:02]} 39. Ne5 {[%clk 00:00:12]}
{[%emt 00:00:07]} Bd6 {[%clk 00:02:47]} {[%emt 00:00:01]} 40. Bg3 {[%clk
00:00:12]} {[%emt 00:00:01]} Rxh1+ {[%clk 00:02:46]} {[%emt 00:00:05]} 41. Kxh1
{[%clk 00:00:12]} a3 {[%clk 00:02:46]} {[%emt 00:00:02]} 0-1

[Event "13 Open de Quenza"]
[Site "Quenza, France"]
[Date "2024.07.07"]
[Round "3.9"]
[White "Travadon, Loic"]
[Black "Stoenescu, Radu"]
[Result "1-0"]
[TimeControl "5min+3s/move"]
[WhiteElo "2458"]
[BlackElo "2009"]

1. e4 {[%clk 00:05:03]} {[%emt 00:00:03]} c5 {[%clk 00:05:03]} 2. Nc3 {[%clk
00:05:03]} {[%emt 00:00:03]} a6 {[%clk 00:05:03]} 3. g3 {[%clk 00:05:03]}
{[%emt 00:00:02]} b5 {[%clk 00:05:03]} {[%emt 00:00:03]} 4. Bg2 {[%clk
00:05:03]} {[%emt 00:00:02]} Bb7 {[%clk 00:05:03]} {[%emt 00:00:01]} 5. d3
{[%clk 00:05:03]} {[%emt 00:00:01]} e6 {[%clk 00:05:03]} {[%emt 00:00:01]} 6.
f4 {[%clk 00:04:51]} {[%emt 00:00:15]} b4 {[%clk 00:05:03]} {[%emt 00:00:01]} 7.
Na4 {[%clk 00:04:51]} {[%emt 00:00:03]} d5 {[%clk 00:05:03]} {[%emt 00:00:02]}
8. exd5 {[%clk 00:04:51]} {[%emt 00:00:03]} Bxd5 {[%clk 00:05:03]} {[%emt
00:00:01]} 9. Nf3 {[%clk 00:04:51]} {[%emt 00:00:02]} Nf6 {[%clk 00:04:44]}
{[%emt 00:00:22]} 10. O-O {[%clk 00:04:50]} {[%emt 00:00:04]} Be7 {[%clk
00:04:41]} {[%emt 00:00:07]} 11. a3 {[%clk 00:04:50]} {[%emt 00:00:03]} a5
{[%clk 00:04:32]} {[%emt 00:00:11]} 12. axb4 {[%clk 00:04:40]} {[%emt
00:00:13]} axb4 {[%clk 00:04:31]} {[%emt 00:00:05]} 13. b3 {[%clk 00:04:35]}
{[%emt 00:00:07]} O-O {[%clk 00:04:28]} {[%emt 00:00:05]} 14. Bb2 {[%clk
00:04:33]} {[%emt 00:00:06]} Nbd7 {[%clk 00:04:23]} {[%emt 00:00:08]} 15. Qe2
{[%clk 00:04:33]} {[%emt 00:00:03]} Qb8 {[%clk 00:04:00]} {[%emt 00:00:26]} 16.
Nh4 {[%clk 00:04:17]} {[%emt 00:00:18]} Bxg2 {[%clk 00:03:43]} {[%emt
00:00:20]} 17. Qxg2 {[%clk 00:04:16]} {[%emt 00:00:04]} Nd5 {[%clk 00:03:21]}
{[%emt 00:00:26]} 18. Rf2 {[%clk 00:04:06]} {[%emt 00:00:14]} Bxh4 {[%clk
00:03:05]} {[%emt 00:00:19]} 19. gxh4 {[%clk 00:04:06]} {[%emt 00:00:02]} N5f6
{[%clk 00:03:00]} {[%emt 00:00:08]} 20. Nxc5 {[%clk 00:03:53]} {[%emt
00:00:17]} Rxa1+ {[%clk 00:02:50]} {[%emt 00:00:14]} 21. Bxa1 {[%clk 00:03:53]}
{[%emt 00:00:01]} Nxc5 {[%clk 00:02:50]} {[%emt 00:00:02]} 22. Bxf6 {[%clk
00:03:53]} {[%emt 00:00:02]} g6 {[%clk 00:02:50]} 23. Qg5 {[%clk 00:03:28]}
{[%emt 00:00:28]} Nd7 {[%clk 00:02:50]} {[%emt 00:00:02]} 24. Bb2 {[%clk
00:03:27]} {[%emt 00:00:04]} Qe8 {[%clk 00:02:28]} {[%emt 00:00:24]} 25. Qb5
{[%clk 00:03:21]} {[%emt 00:00:08]} Qe7 {[%clk 00:02:27]} {[%emt 00:00:06]} 26.
Qg5 {[%clk 00:03:21]} {[%emt 00:00:03]} f6 {[%clk 00:02:22]} {[%emt 00:00:08]}
27. Qg3 {[%clk 00:03:21]} {[%emt 00:00:03]} Kh8 {[%clk 00:02:18]} {[%emt
00:00:07]} 28. Re2 {[%clk 00:03:19]} {[%emt 00:00:05]} Qc5+ {[%clk 00:02:04]}
{[%emt 00:00:17]} 29. Qe3 {[%clk 00:03:16]} {[%emt 00:00:06]} Kg7 {[%clk
00:01:54]} {[%emt 00:00:14]} 30. Qxc5 {[%clk 00:03:08]} {[%emt 00:00:11]} Nxc5
{[%clk 00:01:54]} 31. d4 {[%clk 00:03:08]} {[%emt 00:00:02]} Nd7 {[%clk
00:01:27]} {[%emt 00:00:30]} 32. Rxe6 {[%clk 00:02:20]} {[%emt 00:00:52]} Kf7
{[%clk 00:01:27]} 33. Re3 {[%clk 00:02:08]} {[%emt 00:00:15]} Ra8 {[%clk
00:01:12]} {[%emt 00:00:18]} 34. c4 {[%clk 00:02:02]} {[%emt 00:00:10]} bxc3
{[%clk 00:01:01]} {[%emt 00:00:15]} 35. Bxc3 {[%clk 00:01:50]} {[%emt
00:00:14]} Nb6 {[%clk 00:00:57]} {[%emt 00:00:08]} 36. Rd3 {[%clk 00:01:45]}
{[%emt 00:00:08]} Nd5 {[%clk 00:00:57]} {[%emt 00:00:02]} 37. Bd2 {[%clk
00:01:45]} {[%emt 00:00:01]} Ke6 {[%clk 00:00:44]} {[%emt 00:00:16]} 38. b4
{[%clk 00:01:44]} {[%emt 00:00:04]} Kf5 {[%clk 00:00:44]} 39. b5 {[%clk
00:01:42]} {[%emt 00:00:05]} Ke4 {[%clk 00:00:44]} {[%emt 00:00:01]} 40. Rb3
{[%clk 00:01:42]} {[%emt 00:00:01]} Kxd4 {[%clk 00:00:44]} {[%emt 00:00:03]} 41.
b6 {[%clk 00:01:38]} {[%emt 00:00:07]} Rb8 {[%clk 00:00:39]} {[%emt 00:00:08]}
42. b7 {[%clk 00:01:22]} {[%emt 00:00:19]} Kc5 {[%clk 00:00:38]} {[%emt
00:00:04]} 43. h5 {[%clk 00:01:12]} {[%emt 00:00:12]} Kc6 {[%clk 00:00:37]}
{[%emt 00:00:04]} 44. hxg6 {[%clk 00:01:12]} {[%emt 00:00:02]} hxg6 {[%clk
00:00:37]} {[%emt 00:00:01]} 45. Rg3 {[%clk 00:01:08]} {[%emt 00:00:06]} Ne7
{[%clk 00:00:33]} {[%emt 00:00:07]} 46. Bb4 {[%clk 00:01:05]} {[%emt 00:00:06]}
Rxb7 {[%clk 00:00:30]} {[%emt 00:00:07]} 47. Bxe7 {[%clk 00:01:05]} {[%emt
00:00:02]} Rxe7 {[%clk 00:00:30]} 48. Rxg6 {[%clk 00:01:05]} {[%emt 00:00:02]}
Rf7 {[%clk 00:00:30]} 49. Rg3 {[%clk 00:01:01]} {[%emt 00:00:07]} Kd5 {[%clk
00:00:27]} {[%emt 00:00:06]} 50. Re3 {[%clk 00:01:01]} {[%emt 00:00:01]} Rg7+
{[%clk 00:00:24]} {[%emt 00:00:06]} 51. Kf2 {[%clk 00:01:01]} {[%emt 00:00:02]}
Rg4 {[%clk 00:00:23]} {[%emt 00:00:05]} 52. Kf3 {[%clk 00:01:01]} {[%emt
00:00:02]} Rg1 {[%clk 00:00:23]} {[%emt 00:00:01]} 53. Re2 {[%clk 00:00:55]}
{[%emt 00:00:10]} Kd6 {[%clk 00:00:23]} {[%emt 00:00:03]} 54. h3 {[%clk
00:00:51]} {[%emt 00:00:06]} Kd7 {[%clk 00:00:23]} {[%emt 00:00:02]} 55. Kf2
{[%clk 00:00:44]} {[%emt 00:00:10]} Rg7 {[%clk 00:00:22]} {[%emt 00:00:04]} 56.
Re3 {[%clk 00:00:44]} {[%emt 00:00:03]} Rg6 {[%clk 00:00:20]} {[%emt 00:00:05]}
57. Re1 {[%clk 00:00:39]} {[%emt 00:00:08]} Rg7 {[%clk 00:00:20]} {[%emt
00:00:03]} 58. Kf3 {[%clk 00:00:39]} {[%emt 00:00:01]} Rg6 {[%clk 00:00:20]}
{[%emt 00:00:01]} 59. Ke4 {[%clk 00:00:38]} {[%emt 00:00:03]} Ke7 {[%clk
00:00:20]} {[%emt 00:00:01]} 60. Kf5+ {[%emt 00:00:02]} Kf7 61. Re7+ {[%clk
00:00:38]} Kxe7 {[%clk 00:00:20]} 62. Kxg6 {[%clk 00:00:38]} {[%emt 00:00:02]}
1-0

[Event "13 Open de Quenza"]
[Site "Quenza, France"]
[Date "2024.07.07"]
[Round "3.10"]
[White "Ratier-Fontana, Matteo"]
[Black "Relange, Eloi"]
[Result "1-0"]
[TimeControl "5min+3s/move"]
[WhiteElo "2153"]
[BlackElo "2440"]

1. d4 {[%clk 00:05:03]} {[%emt 00:00:03]} d6 {[%clk 00:05:03]} {[%emt
00:00:01]} 2. Bf4 {[%clk 00:05:03]} {[%emt 00:00:02]} g6 {[%clk 00:05:03]}
{[%emt 00:00:04]} 3. Nf3 {[%clk 00:05:03]} {[%emt 00:00:02]} Bg7 {[%clk
00:05:03]} {[%emt 00:00:02]} 4. e3 {[%clk 00:05:03]} {[%emt 00:00:02]} Nd7
{[%clk 00:05:03]} {[%emt 00:00:03]} 5. h3 {[%clk 00:05:03]} {[%emt 00:00:01]}
e5 {[%clk 00:05:03]} {[%emt 00:00:03]} 6. Bh2 {[%clk 00:05:03]} {[%emt
00:00:01]} Qe7 {[%clk 00:05:02]} {[%emt 00:00:04]} 7. Be2 {[%clk 00:05:03]}
{[%emt 00:00:01]} Ngf6 {[%clk 00:04:46]} {[%emt 00:00:19]} 8. O-O {[%clk
00:05:03]} {[%emt 00:00:02]} O-O {[%clk 00:04:46]} {[%emt 00:00:02]} 9. c4
{[%clk 00:05:03]} {[%emt 00:00:02]} c6 {[%clk 00:04:46]} {[%emt 00:00:03]} 10.
Nc3 {[%clk 00:05:03]} {[%emt 00:00:01]} b6 {[%clk 00:03:57]} {[%emt 00:00:52]}
11. b4 {[%clk 00:04:56]} {[%emt 00:00:08]} exd4 {[%clk 00:03:42]} {[%emt
00:00:18]} 12. exd4 {[%clk 00:04:36]} {[%emt 00:00:23]} Bb7 {[%clk 00:03:42]}
{[%emt 00:00:01]} 13. Re1 {[%clk 00:04:21]} {[%emt 00:00:18]} Rfe8 {[%clk
00:03:42]} {[%emt 00:00:01]} 14. Bd3 {[%clk 00:04:18]} {[%emt 00:00:05]} Qf8
{[%clk 00:03:42]} {[%emt 00:00:01]} 15. Qb3 {[%clk 00:04:17]} {[%emt 00:00:04]}
a6 {[%clk 00:02:24]} {[%emt 00:01:22]} 16. c5 {[%clk 00:04:17]} {[%emt
00:00:03]} dxc5 {[%clk 00:02:16]} {[%emt 00:00:11]} 17. bxc5 {[%clk 00:04:15]}
{[%emt 00:00:05]} Rxe1+ {[%clk 00:01:59]} {[%emt 00:00:20]} 18. Rxe1 {[%clk
00:04:15]} {[%emt 00:00:01]} Qd8 {[%clk 00:01:59]} 19. Bc4 {[%clk 00:03:12]}
{[%emt 00:01:07]} Kh8 {[%clk 00:00:37]} {[%emt 00:01:25]} 20. Ng5 {[%clk
00:03:08]} {[%emt 00:00:07]} 1-0

[Event "13 Open de Quenza"]
[Site "Quenza, France"]
[Date "2024.07.07"]
[Round "3.11"]
[White "Glek, Igor"]
[Black "Utrera, Ludovic"]
[Result "1-0"]
[TimeControl "5min+3s/move"]
[WhiteElo "2396"]
[BlackElo "2098"]

1. e4 {[%clk 00:05:03]} c5 {[%clk 00:05:03]} {[%emt 00:00:02]} 2. Nf3 {[%clk
00:05:03]} {[%emt 00:00:01]} d6 {[%clk 00:05:03]} 3. d4 {[%clk 00:05:03]} cxd4
{[%clk 00:05:03]} {[%emt 00:00:01]} 4. Nxd4 {[%clk 00:05:03]} Nf6 {[%clk
00:05:03]} 5. Nc3 {[%clk 00:05:03]} {[%emt 00:00:02]} a6 {[%clk 00:05:02]}
{[%emt 00:00:05]} 6. a4 {[%clk 00:05:03]} e5 {[%clk 00:04:36]} {[%emt
00:00:28]} 7. Nf3 {[%clk 00:05:03]} {[%emt 00:00:02]} Be7 {[%clk 00:04:29]}
{[%emt 00:00:10]} 8. Bg5 {[%clk 00:05:01]} {[%emt 00:00:05]} O-O {[%clk
00:04:29]} {[%emt 00:00:03]} 9. Bxf6 {[%clk 00:05:00]} {[%emt 00:00:04]} Bxf6
{[%clk 00:04:29]} {[%emt 00:00:02]} 10. Bc4 {[%clk 00:05:00]} {[%emt 00:00:02]}
Bg4 {[%clk 00:04:16]} {[%emt 00:00:17]} 11. h3 {[%clk 00:04:57]} {[%emt
00:00:06]} Bh5 {[%clk 00:04:16]} {[%emt 00:00:02]} 12. g4 {[%clk 00:03:55]}
{[%emt 00:01:05]} Bg6 {[%clk 00:04:16]} {[%emt 00:00:01]} 13. h4 {[%clk
00:03:55]} {[%emt 00:00:02]} h5 {[%clk 00:03:42]} {[%emt 00:00:37]} 14. Nd2
{[%clk 00:03:25]} {[%emt 00:00:33]} hxg4 {[%clk 00:02:46]} {[%emt 00:00:59]} 15.
Qxg4 {[%clk 00:03:17]} {[%emt 00:00:11]} Bh7 {[%clk 00:02:36]} {[%emt
00:00:13]} 16. Nd5 {[%clk 00:02:43]} {[%emt 00:00:37]} Nd7 {[%clk 00:02:20]}
{[%emt 00:00:20]} 17. Rg1 {[%clk 00:02:37]} {[%emt 00:00:09]} Nb6 {[%clk
00:02:10]} {[%emt 00:00:13]} 18. Nxf6+ {[%clk 00:02:14]} {[%emt 00:00:26]} Qxf6
{[%clk 00:02:10]} {[%emt 00:00:01]} 19. Bb3 {[%clk 00:02:14]} Rfd8 {[%clk
00:01:48]} {[%emt 00:00:25]} 20. a5 {[%clk 00:01:47]} {[%emt 00:00:30]} Nd7
{[%clk 00:01:48]} {[%emt 00:00:02]} 21. Bd5 {[%clk 00:01:41]} {[%emt 00:00:09]}
Rac8 {[%clk 00:01:48]} {[%emt 00:00:03]} 22. c3 {[%clk 00:01:41]} Nc5 {[%clk
00:01:48]} {[%emt 00:00:02]} 23. Rg3 {[%clk 00:01:33]} {[%emt 00:00:10]} Rc7
{[%clk 00:01:36]} {[%emt 00:00:16]} 24. Ke2 {[%clk 00:01:30]} {[%emt 00:00:07]}
Ne6 {[%clk 00:01:36]} {[%emt 00:00:02]} 25. Rag1 {[%clk 00:01:25]} {[%emt
00:00:07]} Bg6 {[%clk 00:01:25]} {[%emt 00:00:14]} 26. Bxe6 {[%clk 00:01:24]}
{[%emt 00:00:03]} fxe6 {[%clk 00:01:16]} {[%emt 00:00:13]} 27. Qxg6 {[%clk
00:01:24]} {[%emt 00:00:02]} Qe7 {[%clk 00:00:48]} {[%emt 00:00:31]} 28. h5
{[%clk 00:01:23]} {[%emt 00:00:04]} d5 {[%clk 00:00:47]} {[%emt 00:00:04]} 29.
h6 {[%clk 00:01:23]} {[%emt 00:00:02]} dxe4 {[%clk 00:00:47]} {[%emt 00:00:02]}
30. Qxg7+ {[%clk 00:01:23]} {[%emt 00:00:02]} Qxg7 {[%clk 00:00:47]} {[%emt
00:00:02]} 31. Rxg7+ {[%clk 00:01:23]} {[%emt 00:00:01]} Rxg7 {[%clk 00:00:47]}
{[%emt 00:00:01]} 32. Rxg7+ {[%clk 00:01:23]} Kh8 {[%clk 00:00:47]} 33. Nxe4
{[%clk 00:01:22]} {[%emt 00:00:05]} Rf8 {[%clk 00:00:47]} {[%emt 00:00:02]} 34.
Ng5 {[%clk 00:01:19]} {[%emt 00:00:05]} 1-0